[Event "*** SCC Grand Prix: Titled Tuesday Blitz"]
[Site "Chess.com"]
[Date "2020.09.08"]
[Round "9"]
[White "rududuyk"]
[Black "ailime26"]
[Result "1-0"]
[WhiteElo "2124"]
[BlackElo "1890"]
[TimeControl "180+1"]
[EndTime "11:47:16 PDT"]
[Termination "rududuyk won on time"]

1. e4 {[%clk 0:03:00.9]} 1... d5 {[%clk 0:02:10.5]} 2. exd5 {[%clk 0:02:59]}
2... Qxd5 {[%clk 0:02:09.8]} 3. Nc3 {[%clk 0:02:57.7]} 3... Qd6 {[%clk
0:02:04.7]} 4. Nf3 {[%clk 0:02:44.9]} 4... g6 {[%clk 0:02:02.4]} 5. Nb5 {[%clk
0:02:30.2]} 5... Qd8 {[%clk 0:01:57.5]} 6. d4 {[%clk 0:02:26.2]} 6... Bg7 {[%clk
0:01:54.5]} 7. Bf4 {[%clk 0:02:24]} 7... Na6 {[%clk 0:01:49.4]} 8. Bc4 {[%clk
0:02:13.8]} 8... Nf6 {[%clk 0:01:44.9]} 9. O-O {[%clk 0:02:03.8]} 9... O-O
{[%clk 0:01:44.3]} 10. h3 {[%clk 0:02:03.4]} 10... c6 {[%clk 0:01:42.8]} 11. Nc3
{[%clk 0:02:01.2]} 11... b5 {[%clk 0:01:42.3]} 12. Be2 {[%clk 0:01:52.7]} 12...
Nc7 {[%clk 0:01:40.4]} 13. Re1 {[%clk 0:01:40.6]} 13... Ncd5 {[%clk 0:01:39.1]}
14. Nxd5 {[%clk 0:01:37.7]} 14... Nxd5 {[%clk 0:01:40]} 15. Bg3 {[%clk
0:01:32.7]} 15... a5 {[%clk 0:01:36.9]} 16. c3 {[%clk 0:01:30]} 16... Qd7 {[%clk
0:01:19.8]} 17. a4 {[%clk 0:01:21.2]} 17... Ba6 {[%clk 0:01:17.9]} 18. Ne5
{[%clk 0:01:19]} 18... Qb7 {[%clk 0:01:13.8]} 19. Bf3 {[%clk 0:01:11.9]} 19...
e6 {[%clk 0:01:10.1]} 20. Nd3 {[%clk 0:01:00.5]} 20... bxa4 {[%clk 0:01:05.8]}
21. Rb1 {[%clk 0:00:36.5]} 21... Qb3 {[%clk 0:00:45.8]} 22. Nc5 {[%clk
0:00:35.7]} 22... Qxd1 {[%clk 0:00:42.8]} 23. Bxd1 {[%clk 0:00:35.6]} 23... a3
{[%clk 0:00:40.5]} 24. bxa3 {[%clk 0:00:30.8]} 24... Nxc3 {[%clk 0:00:36.7]} 25.
Rb6 {[%clk 0:00:31]} 25... Bxd4 {[%clk 0:00:20.6]} 26. Rxa6 {[%clk 0:00:29.1]}
26... Bxc5 {[%clk 0:00:19.5]} 27. Rxc6 {[%clk 0:00:27.7]} 27... Bd4 {[%clk
0:00:17]} 28. Bc2 {[%clk 0:00:24.5]} 28... Bg7 {[%clk 0:00:12.9]} 29. a4 {[%clk
0:00:21.7]} 29... Rfc8 {[%clk 0:00:13.1]} 30. Rxc8+ {[%clk 0:00:17.8]} 30...
Rxc8 {[%clk 0:00:13.9]} 31. Bd3 {[%clk 0:00:16.7]} 31... Nd5 {[%clk 0:00:14.1]}
32. Bb5 {[%clk 0:00:15.8]} 32... Nc3 {[%clk 0:00:12.2]} 33. Kh2 {[%clk
0:00:14.3]} 33... Nxb5 {[%clk 0:00:12]} 34. axb5 {[%clk 0:00:15.2]} 34... Rc5
{[%clk 0:00:11.5]} 35. b6 {[%clk 0:00:14.4]} 35... Rb5 {[%clk 0:00:11.5]} 36.
Bc7 {[%clk 0:00:13.3]} 36... Bd4 {[%clk 0:00:10.5]} 37. Rd1 {[%clk 0:00:12.1]}
37... Bxb6 {[%clk 0:00:09.4]} 38. Rd8+ {[%clk 0:00:11.7]} 38... Kg7 {[%clk
0:00:02.2]} 39. Rb8 {[%clk 0:00:11.3]} 1-0

[Event "*** SCC Grand Prix: Titled Tuesday Blitz"]
[Site "Chess.com"]
[Date "2020.09.08"]
[Round "9"]
[White "eightbyeightchess"]
[Black "Colombiano07"]
[Result "1/2-1/2"]
[WhiteElo "2438"]
[BlackElo "2332"]
[TimeControl "180+1"]
[EndTime "11:47:18 PDT"]
[Termination "Game drawn by repetition"]

1. e4 {[%clk 0:03:00.9]} 1... e6 {[%clk 0:02:59.9]} 2. d4 {[%clk 0:02:59.5]}
2... d5 {[%clk 0:03:00.5]} 3. e5 {[%clk 0:02:59.7]} 3... c5 {[%clk 0:03:00.5]}
4. c3 {[%clk 0:03:00.4]} 4... Qb6 {[%clk 0:03:01.1]} 5. Nf3 {[%clk 0:02:59.6]}
5... Bd7 {[%clk 0:03:01.6]} 6. Na3 {[%clk 0:02:58.2]} 6... cxd4 {[%clk
0:03:00.3]} 7. cxd4 {[%clk 0:02:59.1]} 7... Bxa3 {[%clk 0:02:58.8]} 8. bxa3
{[%clk 0:02:59.1]} 8... Ne7 {[%clk 0:02:54.9]} 9. Bd3 {[%clk 0:02:56.8]} 9... a6
{[%clk 0:02:47.1]} 10. Rb1 {[%clk 0:02:53.7]} 10... Qa5+ {[%clk 0:02:45.1]} 11.
Nd2 {[%clk 0:02:42.7]} 11... Bb5 {[%clk 0:02:44.3]} 12. Bxb5+ {[%clk 0:02:37.1]}
12... axb5 {[%clk 0:02:45.2]} 13. O-O {[%clk 0:02:35.2]} 13... O-O {[%clk
0:02:44.6]} 14. Qe2 {[%clk 0:02:31.4]} 14... Nbc6 {[%clk 0:02:40.6]} 15. Nb3
{[%clk 0:02:07.4]} 15... Qa4 {[%clk 0:02:39.5]} 16. Rd1 {[%clk 0:02:01.7]} 16...
Nf5 {[%clk 0:02:39.2]} 17. Be3 {[%clk 0:02:00.4]} 17... Qxa3 {[%clk 0:02:37.8]}
18. Bc1 {[%clk 0:01:47.1]} 18... Qxa2 {[%clk 0:02:36.9]} 19. Rb2 {[%clk
0:01:41.5]} 19... Qa7 {[%clk 0:02:17.7]} 20. Be3 {[%clk 0:01:34.5]} 20... Nxe3
{[%clk 0:02:11.6]} 21. fxe3 {[%clk 0:01:35.4]} 21... Na5 {[%clk 0:02:07.6]} 22.
Nxa5 {[%clk 0:01:24]} 22... Qxa5 {[%clk 0:02:05.8]} 23. Rxb5 {[%clk 0:01:24.9]}
23... Qc3 {[%clk 0:01:56.1]} 24. Rxb7 {[%clk 0:01:21.5]} 24... Ra3 {[%clk
0:01:55.1]} 25. e4 {[%clk 0:01:12.8]} 25... dxe4 {[%clk 0:01:45.3]} 26. Qxe4
{[%clk 0:01:13.7]} 26... Ra2 {[%clk 0:01:37.1]} 27. Qf3 {[%clk 0:00:42.4]} 27...
Qxf3 {[%clk 0:01:28.9]} 28. gxf3 {[%clk 0:00:43.3]} 28... Rc8 {[%clk 0:01:27.9]}
29. Rdb1 {[%clk 0:00:40]} 29... g5 {[%clk 0:01:23.1]} 30. Rb8 {[%clk 0:00:37.7]}
30... Rxb8 {[%clk 0:01:23.6]} 31. Rxb8+ {[%clk 0:00:38.2]} 31... Kg7 {[%clk
0:01:24.5]} 32. Rd8 {[%clk 0:00:38.6]} 32... Kg6 {[%clk 0:01:23.6]} 33. d5
{[%clk 0:00:38.9]} 33... exd5 {[%clk 0:01:23.2]} 34. Rxd5 {[%clk 0:00:39.8]}
34... h5 {[%clk 0:01:21.2]} 35. Rb5 {[%clk 0:00:33.4]} 35... Re2 {[%clk
0:01:06.9]} 36. Rb6+ {[%clk 0:00:31.1]} 36... Kg7 {[%clk 0:01:02.9]} 37. Rb5
{[%clk 0:00:30.3]} 37... Kf8 {[%clk 0:00:57.1]} 38. e6 {[%clk 0:00:17.1]} 38...
f6 {[%clk 0:00:55.8]} 39. f4 {[%clk 0:00:14]} 39... Rxe6 {[%clk 0:00:31.1]} 40.
fxg5 {[%clk 0:00:14.1]} 40... Re5 {[%clk 0:00:31.7]} 41. Rb8+ {[%clk 0:00:02.7]}
41... Kf7 {[%clk 0:00:31.2]} 42. gxf6 {[%clk 0:00:03.6]} 42... Kxf6 {[%clk
0:00:32.1]} 43. Kg2 {[%clk 0:00:04.3]} 43... Re3 {[%clk 0:00:31.6]} 44. Rb5
{[%clk 0:00:03.8]} 44... Kg6 {[%clk 0:00:31.4]} 45. Rb6+ {[%clk 0:00:03.6]}
45... Kg5 {[%clk 0:00:31.6]} 46. Rb5+ {[%clk 0:00:04.5]} 46... Kg4 {[%clk
0:00:29.4]} 47. Rb4+ {[%clk 0:00:04.9]} 47... Kf5 {[%clk 0:00:29.4]} 48. Rb5+
{[%clk 0:00:05.4]} 48... Kg4 {[%clk 0:00:28]} 49. Rb4+ {[%clk 0:00:05.7]} 49...
Kg5 {[%clk 0:00:28.2]} 50. Rb5+ {[%clk 0:00:05.3]} 50... Kg6 {[%clk 0:00:28.4]}
51. Ra5 {[%clk 0:00:05.4]} 51... Rb3 {[%clk 0:00:27.6]} 52. Ra6+ {[%clk
0:00:05.4]} 52... Kg5 {[%clk 0:00:27.6]} 53. Ra5+ {[%clk 0:00:05.9]} 53... Kg4
{[%clk 0:00:27.9]} 54. Ra4+ {[%clk 0:00:06.1]} 54... Kg5 {[%clk 0:00:28.5]} 55.
Ra5+ {[%clk 0:00:06.6]} 55... Kg4 {[%clk 0:00:29.1]} 56. Ra4+ {[%clk 0:00:06.9]}
56... Kg5 {[%clk 0:00:29.7]} 57. Ra5+ {[%clk 0:00:07.3]} 1/2-1/2

[Event "*** SCC Grand Prix: Titled Tuesday Blitz"]
[Site "Chess.com"]
[Date "2020.09.08"]
[Round "9"]
[White "Nils_03"]
[Black "Sn00pPawn"]
[Result "1-0"]
[WhiteElo "2259"]
[BlackElo "2005"]
[TimeControl "180+1"]
[EndTime "11:47:18 PDT"]
[Termination "Nils_03 won on time"]

1. b3 {[%clk 0:02:55.1]} 1... d5 {[%clk 0:02:55.4]} 2. Bb2 {[%clk 0:02:56]} 2...
c5 {[%clk 0:02:54.6]} 3. e3 {[%clk 0:02:54.7]} 3... Nc6 {[%clk 0:02:50.7]} 4.
Nf3 {[%clk 0:02:53.9]} 4... f6 {[%clk 0:02:30.3]} 5. d4 {[%clk 0:02:52.1]} 5...
Bg4 {[%clk 0:02:20.3]} 6. h3 {[%clk 0:02:49.7]} 6... Bxf3 {[%clk 0:02:17.2]} 7.
Qxf3 {[%clk 0:02:50.6]} 7... e5 {[%clk 0:02:16.9]} 8. dxe5 {[%clk 0:02:40.6]}
8... fxe5 {[%clk 0:02:08.4]} 9. Bb5 {[%clk 0:02:35.4]} 9... Nf6 {[%clk 0:01:34]}
10. Bxc6+ {[%clk 0:02:29.7]} 10... bxc6 {[%clk 0:01:31]} 11. Bxe5 {[%clk
0:02:30.6]} 11... Be7 {[%clk 0:01:27.9]} 12. O-O {[%clk 0:02:29]} 12... Rf8
{[%clk 0:01:26.8]} 13. Qe2 {[%clk 0:02:26.5]} 13... Kf7 {[%clk 0:01:23.6]} 14.
c4 {[%clk 0:02:20.1]} 14... Kg8 {[%clk 0:01:23.2]} 15. Nc3 {[%clk 0:02:19.5]}
15... Qd7 {[%clk 0:01:15.5]} 16. Rad1 {[%clk 0:02:18.6]} 16... Qe6 {[%clk
0:01:13.6]} 17. Bxf6 {[%clk 0:02:10.1]} 17... Qxf6 {[%clk 0:01:14.3]} 18. Qd3
{[%clk 0:02:05]} 18... dxc4 {[%clk 0:00:25]} 19. Qxc4+ {[%clk 0:02:05.9]} 19...
Kh8 {[%clk 0:00:24.7]} 20. Ne4 {[%clk 0:02:03.7]} 20... Qe5 {[%clk 0:00:24]} 21.
Rc1 {[%clk 0:01:56]} 21... Rad8 {[%clk 0:00:20.2]} 22. Nxc5 {[%clk 0:01:55.9]}
22... Bxc5 {[%clk 0:00:19.8]} 23. Qxc5 {[%clk 0:01:56.8]} 23... Qxc5 {[%clk
0:00:19.2]} 24. Rxc5 {[%clk 0:01:57.7]} 24... Rd2 {[%clk 0:00:19.2]} 25. Ra5
{[%clk 0:01:57.6]} 25... Rf7 {[%clk 0:00:16.5]} 26. f3 {[%clk 0:01:53.1]} 26...
h6 {[%clk 0:00:15.5]} 27. Rf2 {[%clk 0:01:50.6]} 27... Rd1+ {[%clk 0:00:10.6]}
28. Kh2 {[%clk 0:01:50.4]} 28... Re1 {[%clk 0:00:10.1]} 29. e4 {[%clk
0:01:50.4]} 29... Rc1 {[%clk 0:00:08.4]} 30. Rd2 {[%clk 0:01:48.1]} 30... Kh7
{[%clk 0:00:06.4]} 31. Ra6 {[%clk 0:01:47.7]} 31... c5 {[%clk 0:00:03.6]} 32.
Ra5 {[%clk 0:01:46.9]} 32... Rc7 {[%clk 0:00:02.9]} 33. Kg3 {[%clk 0:01:43.5]}
33... c4 {[%clk 0:00:02.9]} 34. bxc4 {[%clk 0:01:42.5]} 34... R1xc4 {[%clk
0:00:01.4]} 35. Rd6 {[%clk 0:01:42.5]} 35... R4c6 {[%clk 0:00:02.3]} 36. Rxc6
{[%clk 0:01:42.1]} 36... Rxc6 {[%clk 0:00:03.2]} 37. Rxa7 {[%clk 0:01:42.5]}
37... Rg6+ {[%clk 0:00:04]} 38. Kf2 {[%clk 0:01:42.3]} 38... Rb6 {[%clk
0:00:04.9]} 39. a4 {[%clk 0:01:41.7]} 39... Rb2+ {[%clk 0:00:05.8]} 40. Kg3
{[%clk 0:01:41.7]} 40... Kg6 {[%clk 0:00:05.2]} 41. a5 {[%clk 0:01:41.5]} 41...
Ra2 {[%clk 0:00:05.2]} 42. f4 {[%clk 0:01:40.8]} 42... Kf6 {[%clk 0:00:03.2]}
43. Kf3 {[%clk 0:01:35.5]} 43... Ra3+ {[%clk 0:00:04.1]} 44. Kg4 {[%clk
0:01:35.3]} 44... Ra4 {[%clk 0:00:04.2]} 45. e5+ {[%clk 0:01:35]} 45... Ke6
{[%clk 0:00:04.3]} 46. Ra6+ {[%clk 0:01:33.7]} 46... Kf7 {[%clk 0:00:04.1]} 47.
g3 {[%clk 0:01:32.8]} 47... g6 {[%clk 0:00:03.9]} 48. h4 {[%clk 0:01:32.4]}
48... h5+ {[%clk 0:00:03]} 49. Kg5 {[%clk 0:01:31.3]} 49... Ra3 {[%clk
0:00:03.3]} 50. Ra7+ {[%clk 0:01:31.1]} 50... Ke6 {[%clk 0:00:02.8]} 51. Ra6+
{[%clk 0:01:25]} 51... Kf7 {[%clk 0:00:02.7]} 52. Rf6+ {[%clk 0:01:24.5]} 52...
Ke7 {[%clk 0:00:02.9]} 53. Rxg6 {[%clk 0:01:22.3]} 53... Rxg3+ {[%clk
0:00:03.2]} 54. Kxh5 {[%clk 0:01:22.8]} 54... Ra3 {[%clk 0:00:04.1]} 55. Ra6
{[%clk 0:01:20.9]} 55... Ra4 {[%clk 0:00:05]} 56. f5 {[%clk 0:01:20.6]} 56...
Kf7 {[%clk 0:00:05.2]} 57. Ra7+ {[%clk 0:01:20.4]} 57... Kg8 {[%clk 0:00:05]}
58. Kg5 {[%clk 0:01:19.7]} 58... Rb4 {[%clk 0:00:04.1]} 59. h5 {[%clk
0:01:19.8]} 59... Rc4 {[%clk 0:00:04.1]} 60. e6 {[%clk 0:01:19.5]} 60... Kf8
{[%clk 0:00:03.1]} 61. Kf6 {[%clk 0:01:19.6]} 61... Rc8 {[%clk 0:00:02.4]} 62.
Rf7+ {[%clk 0:01:17.3]} 62... Kg8 {[%clk 0:00:02.5]} 63. Rg7+ {[%clk 0:01:17]}
63... Kh8 {[%clk 0:00:02.5]} 64. Rf7 {[%clk 0:01:11.1]} 1-0

[Event "*** SCC Grand Prix: Titled Tuesday Blitz"]
[Site "Chess.com"]
[Date "2020.09.08"]
[Round "9"]
[White "daro94"]
[Black "Fandorine"]
[Result "1-0"]
[WhiteElo "2980"]
[BlackElo "2913"]
[TimeControl "180+1"]
[EndTime "11:47:20 PDT"]
[Termination "daro94 won by resignation"]

1. Nf3 {[%clk 0:02:55.2]} 1... Nf6 {[%clk 0:02:59.8]} 2. b3 {[%clk 0:02:54.5]}
2... g6 {[%clk 0:02:56.8]} 3. Bb2 {[%clk 0:02:54.9]} 3... Bg7 {[%clk 0:02:57.4]}
4. g3 {[%clk 0:02:55.5]} 4... b6 {[%clk 0:02:55.3]} 5. Bg2 {[%clk 0:02:55.7]}
5... Bb7 {[%clk 0:02:55.9]} 6. O-O {[%clk 0:02:55.9]} 6... c5 {[%clk 0:02:55.7]}
7. c4 {[%clk 0:02:56.3]} 7... O-O {[%clk 0:02:55.5]} 8. d4 {[%clk 0:02:56.5]}
8... cxd4 {[%clk 0:02:55]} 9. Qxd4 {[%clk 0:02:56.3]} 9... d6 {[%clk 0:02:55.5]}
10. Nc3 {[%clk 0:02:54.2]} 10... Nbd7 {[%clk 0:02:55.8]} 11. Rfd1 {[%clk
0:02:51.7]} 11... Rc8 {[%clk 0:02:56.3]} 12. Rac1 {[%clk 0:02:50]} 12... Rc5
{[%clk 0:02:53.1]} 13. Ne1 {[%clk 0:02:45]} 13... Qa8 {[%clk 0:02:47.7]} 14. Nd5
{[%clk 0:02:19.1]} 14... Re8 {[%clk 0:02:45.5]} 15. Nxf6+ {[%clk 0:01:59.9]}
15... Bxf6 {[%clk 0:02:40.6]} 16. Qd2 {[%clk 0:02:00.1]} 16... Bxb2 {[%clk
0:02:39.6]} 17. Qxb2 {[%clk 0:02:01]} 17... Nf6 {[%clk 0:02:40]} 18. Bxb7 {[%clk
0:01:59.3]} 18... Qxb7 {[%clk 0:02:40.9]} 19. Nd3 {[%clk 0:02:00]} 19... Rc7
{[%clk 0:02:39.2]} 20. a4 {[%clk 0:01:59.5]} 20... Qe4 {[%clk 0:02:32.8]} 21.
Nf4 {[%clk 0:01:54.7]} 21... Rec8 {[%clk 0:02:30.4]} 22. Rc3 {[%clk 0:01:49.3]}
22... Qe5 {[%clk 0:02:20.6]} 23. Qc2 {[%clk 0:01:40.4]} 23... a6 {[%clk
0:02:08]} 24. Re3 {[%clk 0:01:38.8]} 24... Qc5 {[%clk 0:01:59.4]} 25. Qb2 {[%clk
0:01:38.3]} 25... Rb7 {[%clk 0:01:18]} 26. Rxe7 {[%clk 0:01:27.2]} 26... Rxe7
{[%clk 0:01:17.6]} 27. Qxf6 {[%clk 0:01:27.3]} 27... Rce8 {[%clk 0:00:55.2]} 28.
Rd5 {[%clk 0:01:22.5]} 28... Qa3 {[%clk 0:00:43.2]} 29. Nh5 {[%clk 0:01:21.5]}
29... Qc1+ {[%clk 0:00:42]} 30. Kg2 {[%clk 0:01:21.8]} 30... Qh6 {[%clk
0:00:42.8]} 31. Nf4 {[%clk 0:00:59.2]} 31... Qg7 {[%clk 0:00:41.5]} 32. Qxd6
{[%clk 0:00:55]} 32... h5 {[%clk 0:00:40.4]} 33. h4 {[%clk 0:00:52.7]} 33... Qb2
{[%clk 0:00:21.5]} 34. Rd3 {[%clk 0:00:35.4]} 34... Kg7 {[%clk 0:00:09.7]} 35.
Qxb6 {[%clk 0:00:30.1]} 35... Re4 {[%clk 0:00:10.3]} 36. Rf3 {[%clk 0:00:27.8]}
36... R8e7 {[%clk 0:00:07.2]} 37. Nd5 {[%clk 0:00:19.8]} 37... Rd7 {[%clk
0:00:02.4]} 38. Qf6+ {[%clk 0:00:10]} 38... Qxf6 {[%clk 0:00:01.6]} 39. Nxf6
{[%clk 0:00:10.9]} 39... Rde7 {[%clk 0:00:01.6]} 40. Nxe4 {[%clk 0:00:11.1]}
40... Rxe4 {[%clk 0:00:02.5]} 41. Re3 {[%clk 0:00:11.1]} 41... Rd4 {[%clk
0:00:02.7]} 42. Rd3 {[%clk 0:00:11.7]} 42... Re4 {[%clk 0:00:02.9]} 43. e3
{[%clk 0:00:12.4]} 43... Re6 {[%clk 0:00:03.8]} 44. b4 {[%clk 0:00:11.9]} 44...
Rb6 {[%clk 0:00:04.7]} 45. b5 {[%clk 0:00:12.1]} 45... a5 {[%clk 0:00:05.6]} 46.
c5 {[%clk 0:00:12.4]} 46... Rd6 {[%clk 0:00:06]} 47. cxd6 {[%clk 0:00:12.6]} 1-0

[Event "*** SCC Grand Prix: Titled Tuesday Blitz"]
[Site "Chess.com"]
[Date "2020.09.08"]
[Round "9"]
[White "frederiksvane"]
[Black "TigrVShlyape"]
[Result "1/2-1/2"]
[WhiteElo "2684"]
[BlackElo "2809"]
[TimeControl "180+1"]
[EndTime "11:47:20 PDT"]
[Termination "Game drawn by repetition"]

1. e4 {[%clk 0:03:00.9]} 1... c5 {[%clk 0:02:59]} 2. Nf3 {[%clk 0:03:00.7]} 2...
e6 {[%clk 0:02:59]} 3. d4 {[%clk 0:03:00.8]} 3... cxd4 {[%clk 0:02:59.5]} 4.
Nxd4 {[%clk 0:03:01.7]} 4... a6 {[%clk 0:02:59.9]} 5. Nc3 {[%clk 0:03:02.2]}
5... b5 {[%clk 0:02:59.8]} 6. Bd3 {[%clk 0:03:01.7]} 6... Qb6 {[%clk 0:02:59.8]}
7. Nb3 {[%clk 0:02:50.6]} 7... Qc7 {[%clk 0:02:59.7]} 8. O-O {[%clk 0:02:50.8]}
8... Bb7 {[%clk 0:02:56.9]} 9. Re1 {[%clk 0:02:50.2]} 9... Ne7 {[%clk
0:02:43.7]} 10. a4 {[%clk 0:02:38.3]} 10... b4 {[%clk 0:02:43.1]} 11. Na2 {[%clk
0:02:38.6]} 11... Nbc6 {[%clk 0:02:40.4]} 12. Bd2 {[%clk 0:02:27.1]} 12... Ng6
{[%clk 0:02:39.4]} 13. c3 {[%clk 0:02:18.5]} 13... bxc3 {[%clk 0:02:35.7]} 14.
Bxc3 {[%clk 0:02:18.5]} 14... Bd6 {[%clk 0:02:33.3]} 15. g3 {[%clk 0:02:16.7]}
15... O-O {[%clk 0:02:24.8]} 16. Bf1 {[%clk 0:02:15.4]} 16... Be5 {[%clk
0:02:19.2]} 17. Nc5 {[%clk 0:02:11.8]} 17... d6 {[%clk 0:02:14.8]} 18. Nxb7
{[%clk 0:02:06.2]} 18... Qxb7 {[%clk 0:02:14.9]} 19. Rb1 {[%clk 0:01:54.8]}
19... Rfd8 {[%clk 0:02:11.3]} 20. Qd2 {[%clk 0:01:45.4]} 20... Bxc3 {[%clk
0:02:10]} 21. Nxc3 {[%clk 0:01:46.3]} 21... Nge5 {[%clk 0:02:07.3]} 22. Kg2
{[%clk 0:01:39.4]} 22... Qb4 {[%clk 0:02:06.6]} 23. Red1 {[%clk 0:01:33.7]}
23... h6 {[%clk 0:01:53.7]} 24. b3 {[%clk 0:01:17.2]} 24... Ng4 {[%clk
0:01:46.2]} 25. h3 {[%clk 0:01:14.3]} 25... Nf6 {[%clk 0:01:45.9]} 26. Qe3
{[%clk 0:01:05.8]} 26... Qb7 {[%clk 0:01:17.6]} 27. Kg1 {[%clk 0:01:00.9]} 27...
Rab8 {[%clk 0:01:14.4]} 28. Na2 {[%clk 0:00:48]} 28... a5 {[%clk 0:01:06.7]} 29.
Bb5 {[%clk 0:00:43.5]} 29... Ne7 {[%clk 0:01:06.4]} 30. Nc3 {[%clk 0:00:41.2]}
30... d5 {[%clk 0:01:05.7]} 31. exd5 {[%clk 0:00:39.9]} 31... Nexd5 {[%clk
0:01:05.1]} 32. Nxd5 {[%clk 0:00:39]} 32... Nxd5 {[%clk 0:01:02.5]} 33. Qf3
{[%clk 0:00:39]} 33... Qb6 {[%clk 0:01:00.6]} 34. Bc4 {[%clk 0:00:36.4]} 34...
Nb4 {[%clk 0:00:58.3]} 35. Rxd8+ {[%clk 0:00:36.1]} 35... Rxd8 {[%clk
0:00:57.7]} 36. Rd1 {[%clk 0:00:36.8]} 36... Rxd1+ {[%clk 0:00:54.5]} 37. Qxd1
{[%clk 0:00:37.7]} 37... g5 {[%clk 0:00:52.8]} 38. Qd7 {[%clk 0:00:34.3]} 38...
Qc5 {[%clk 0:00:47.7]} 39. Kg2 {[%clk 0:00:22.9]} 39... Qe5 {[%clk 0:00:40.5]}
40. Qb5 {[%clk 0:00:19.1]} 40... Qe4+ {[%clk 0:00:38.6]} 41. Kg1 {[%clk
0:00:19.1]} 41... Nc6 {[%clk 0:00:37.7]} 42. Bd3 {[%clk 0:00:14.5]} 42... Qd5
{[%clk 0:00:33.4]} 43. Bc4 {[%clk 0:00:06.5]} 43... Qd6 {[%clk 0:00:28.9]} 44.
Qb6 {[%clk 0:00:05.1]} 44... Qd1+ {[%clk 0:00:21.7]} 45. Kg2 {[%clk 0:00:05]}
45... Nd4 {[%clk 0:00:21.2]} 46. Qxa5 {[%clk 0:00:05.2]} 46... Qf3+ {[%clk
0:00:21]} 47. Kg1 {[%clk 0:00:05.1]} 47... Qd1+ {[%clk 0:00:21.1]} 48. Kg2
{[%clk 0:00:05.7]} 48... Qf3+ {[%clk 0:00:21.1]} 49. Kg1 {[%clk 0:00:06.2]}
49... Qd1+ {[%clk 0:00:19.7]} 50. Kg2 {[%clk 0:00:05.2]} 1/2-1/2

[Event "*** SCC Grand Prix: Titled Tuesday Blitz"]
[Site "Chess.com"]
[Date "2020.09.08"]
[Round "9"]
[White "Bacyanide"]
[Black "GothamChess"]
[Result "0-1"]
[WhiteElo "2418"]
[BlackElo "2571"]
[TimeControl "180+1"]
[EndTime "11:47:20 PDT"]
[Termination "GothamChess won by resignation"]

1. d4 {[%clk 0:03:00.9]} 1... e6 {[%clk 0:02:58.8]} 2. c4 {[%clk 0:03:00.9]}
2... b6 {[%clk 0:02:59.2]} 3. Nf3 {[%clk 0:02:57]} 3... Bb7 {[%clk 0:02:59.1]}
4. g3 {[%clk 0:02:57]} 4... Bb4+ {[%clk 0:02:58.5]} 5. Bd2 {[%clk 0:02:54.1]}
5... Bxd2+ {[%clk 0:02:54.9]} 6. Nbxd2 {[%clk 0:02:48.5]} 6... f5 {[%clk
0:02:54.9]} 7. Bg2 {[%clk 0:02:48.4]} 7... Nf6 {[%clk 0:02:55.3]} 8. O-O {[%clk
0:02:46.2]} 8... O-O {[%clk 0:02:55.5]} 9. Qc2 {[%clk 0:02:44.1]} 9... Qc8
{[%clk 0:02:53.6]} 10. d5 {[%clk 0:02:41.7]} 10... exd5 {[%clk 0:02:48.3]} 11.
Qxf5 {[%clk 0:02:40.5]} 11... Ne4 {[%clk 0:02:37.5]} 12. Qe5 {[%clk 0:02:38.2]}
12... d6 {[%clk 0:02:29.3]} 13. Qd4 {[%clk 0:02:36.9]} 13... c5 {[%clk
0:02:25.4]} 14. Qd3 {[%clk 0:02:35.2]} 14... dxc4 {[%clk 0:02:02.5]} 15. Nxc4
{[%clk 0:02:28.5]} 15... d5 {[%clk 0:02:01.7]} 16. Nfd2 {[%clk 0:02:21.6]} 16...
Qe6 {[%clk 0:01:44.9]} 17. Nxe4 {[%clk 0:02:09.5]} 17... dxe4 {[%clk 0:01:42.3]}
18. Qc3 {[%clk 0:02:07.7]} 18... Nc6 {[%clk 0:01:38.2]} 19. e3 {[%clk
0:02:06.9]} 19... Rad8 {[%clk 0:01:31.7]} 20. Rad1 {[%clk 0:02:05.5]} 20... h6
{[%clk 0:01:16]} 21. a3 {[%clk 0:02:03]} 21... Ne7 {[%clk 0:00:56.1]} 22. Qe5
{[%clk 0:01:53.2]} 22... Qxe5 {[%clk 0:00:54.7]} 23. Nxe5 {[%clk 0:01:54.1]}
23... Kh7 {[%clk 0:00:45.1]} 24. Nc4 {[%clk 0:01:47.5]} 24... Ba6 {[%clk
0:00:40.9]} 25. Bxe4+ {[%clk 0:01:46.3]} 25... Kh8 {[%clk 0:00:37.9]} 26. Rc1
{[%clk 0:01:41.3]} 26... Nf5 {[%clk 0:00:33]} 27. Rfe1 {[%clk 0:01:35.7]} 27...
Bxc4 {[%clk 0:00:26.3]} 28. Rxc4 {[%clk 0:01:34.6]} 28... Nd6 {[%clk 0:00:26.4]}
29. Bd5 {[%clk 0:01:25.5]} 29... Nxc4 {[%clk 0:00:26.5]} 30. Bxc4 {[%clk
0:01:26.4]} 30... Rd2 {[%clk 0:00:26.8]} 31. Re2 {[%clk 0:01:21.5]} 31... Rxe2
{[%clk 0:00:26.9]} 32. Bxe2 {[%clk 0:01:22.4]} 32... Rd8 {[%clk 0:00:27.3]} 33.
b3 {[%clk 0:01:21]} 33... Rd2 {[%clk 0:00:28.2]} 34. Bc4 {[%clk 0:01:20.4]}
34... g5 {[%clk 0:00:23.8]} 35. a4 {[%clk 0:01:15.2]} 35... g4 {[%clk
0:00:21.8]} 36. Be6 {[%clk 0:01:13.1]} 36... Rb2 {[%clk 0:00:18.6]} 37. Kf1
{[%clk 0:00:48.9]} 37... Kg7 {[%clk 0:00:18.8]} 38. Bxg4 {[%clk 0:00:40.5]}
38... Rxb3 {[%clk 0:00:18.7]} 39. Ke2 {[%clk 0:00:39.4]} 39... a6 {[%clk
0:00:18.9]} 40. f4 {[%clk 0:00:33.6]} 40... b5 {[%clk 0:00:18.2]} 41. axb5
{[%clk 0:00:34.4]} 41... axb5 {[%clk 0:00:19.1]} 42. e4 {[%clk 0:00:26]} 42...
c4 {[%clk 0:00:19.5]} 43. e5 {[%clk 0:00:25.7]} 43... Rb2+ {[%clk 0:00:17.8]}
44. Ke3 {[%clk 0:00:24.3]} 44... Rxh2 {[%clk 0:00:16.8]} 45. f5 {[%clk
0:00:22.9]} 45... c3 {[%clk 0:00:16]} 46. f6+ {[%clk 0:00:17.4]} 46... Kg6
{[%clk 0:00:16.2]} 47. Bd7 {[%clk 0:00:14.7]} 47... c2 {[%clk 0:00:12.7]} 48.
Be8+ {[%clk 0:00:14.9]} 48... Kg5 {[%clk 0:00:12.3]} 49. f7 {[%clk 0:00:14.2]}
49... c1=Q+ {[%clk 0:00:12.9]} 50. Ke4 {[%clk 0:00:14.8]} 0-1